bitfinex/quotes_ETHUSD_20250803
["timestamp","ask_amount","ask_price","bid_price","bid_amount"]
[1754186626936,0.927,3425.3,3425.2,3.0]
[1754186627133,0.927,3425.3,3425.2,3.877417]
[1754186627333,0.001,3425.3,3425.2,4.573017]
[1754186627531,0.4404,3425.3,3425.2,4.573017]
[1754186628160,0.927,3425.3,3425.2,4.573017]
[1754186628672,0.001,3425.3,3425.2,4.573017]
[1754186628830,0.001,3425.3,3425.2,5.074917]
[1754186630357,0.001,3425.3,3425.2,4.573017]
[1754186630581,0.001,3425.3,3425.2,5.068117]
[1754186631636,0.4401,3426.0,3425.2,5.068117]
[1754186631843,0.4401,3426.0,3425.9,9.82829502]
[1754186632045,0.4401,3426.0,3425.9,14.28629502]
[1754186633654,0.4401,3426.0,3425.9,11.58592594]
[1754186634181,0.1456,3426.6,3426.1,0.55]
[1754186634381,4.458,3428.0,3426.3,10.37829502]
[1754186634382,0.4401,3426.4,3426.3,10.37829502]
[1754186634543,0.4401,3426.4,3426.3,10.52389502]
[1754186634878,0.8992,3426.4,3426.3,10.98299502]
[1754186635384,0.8992,3426.4,3426.3,10.28739502]
[1754186635886,0.4401,3426.4,3426.3,7.36859502]
[1754186636567,0.4401,3426.4,3426.3,7.51419502]
[1754186639387,0.8992,3426.4,3426.3,7.36859502]
[1754186639587,0.8992,3426.4,3426.3,8.06419502]
[1754186640391,0.4401,3426.7,3426.4,0.55]
[1754186640600,0.4401,3426.6,3426.4,0.55]
[1754186640806,0.1456,3427.1,3426.6,0.1456]
[1754186640958,0.1456,3427.1,3426.5,0.1456]
[1754186641159,0.1456,3426.8,3426.3,7.6026]
[1754186641461,0.8992,3426.7,3426.6,0.877092]
[1754186643465,0.8992,3426.7,3425.9,0.22473092]
[1754186643664,6.82829502,3427.6,3425.7,0.877092]
[1754186643665,0.1456,3426.0,3425.7,0.877092]
[1754186643861,1.6974,3427.9,3425.7,3.877092]
[1754186644105,0.4401,3426.0,3425.7,4.022692]
[1754186644424,0.4401,3426.0,3425.7,4.517792]
[1754186645467,0.5857,3426.3,3425.8,0.4951]
[1754186645760,0.8992,3426.2,3425.7,4.24606639]
[1754186645982,0.8992,3426.1,3425.7,4.24606639]
[1754186646179,0.4401,3426.0,3425.7,4.24606639]
[1754186646399,0.1456,3426.3,3425.7,1.24606639]
[1754186646607,0.4401,3425.9,3425.7,4.24606639]
[1754186646905,0.1456,3426.3,3425.8,0.55]
[1754186647113,0.1456,3426.4,3425.9,0.4951]
[1754186647282,0.8992,3426.3,3425.9,3.4951]
[1754186647464,0.1456,3426.4,3425.9,3.0]
[1754186647817,0.1456,3426.4,3426.0,0.55]
[1754186648023,0.5857,3426.6,3426.1,0.1456]
[1754186648187,0.4401,3426.5,3426.1,9.97389502]
[1754186648383,0.4401,3426.5,3426.2,0.4951]
[1754186648709,0.4401,3426.5,3426.2,1.372217]
[1754186648868,0.4401,3426.5,3426.3,0.4951]
[1754186649214,0.4401,3426.4,3426.2,0.877117]
[1754186649393,0.8992,3426.3,3425.7,3.22337439]
[1754186649705,0.8992,3426.2,3426.0,0.4591]
[1754186650087,0.8992,3426.1,3426.0,0.4591]
[1754186650918,0.4401,3426.6,3426.0,0.4591]
[1754186651076,0.4401,3426.6,3426.0,0.9542]
[1754186651590,0.4401,3426.6,3426.0,0.4951]
[1754186651790,0.4401,3426.6,3426.1,0.56044]
[1754186652018,0.4591,3426.5,3426.1,0.56044]
[1754186652179,4.457,3427.7,3426.1,0.56044]
[1754186652384,0.8992,3426.4,3426.1,0.56044]
[1754186652705,0.4401,3426.3,3426.1,0.56044]
[1754186653274,4.457,3427.7,3426.1,0.56044]
[1754186653519,0.4401,3426.4,3426.1,0.56044]
[1754186653684,0.001,3426.4,3426.2,0.4951]
[1754186654284,0.001,3426.4,3426.2,3.0]
[1754186654487,0.001,3426.4,3426.3,0.4951]
[1754186655119,0.001,3426.4,3426.3,0.55]
[1754186655288,0.001,3426.4,3426.3,1.0451]
[1754186656334,0.001,3426.8,3426.3,1.0451]
[1754186656583,0.001,3426.8,3426.7,10.37829502]
[1754186656820,0.001,3426.8,3426.7,14.84729502]
[1754186657112,0.001,3426.8,3426.7,15.34239502]
[1754186658415,0.001,3426.8,3426.7,18.26065457]
[1754186658617,0.4401,3428.0,3427.5,3.55]
[1754186658789,0.4401,3428.0,3427.5,8.027]
[1754186658790,0.4401,3427.9,3427.5,8.027]
[1754186658996,0.4401,3427.9,3427.5,8.5221]
[1754186659315,0.4401,3427.9,3427.7,0.55]
[1754186659514,0.4383,3428.1,3427.8,0.1456]
[1754186660014,0.4383,3428.0,3427.8,0.1456]
[1754186660181,0.4383,3428.3,3427.9,0.9484]
[1754186660518,0.1456,3428.4,3428.0,3.0]
[1754186660694,0.4383,3428.2,3428.0,3.0]
[1754186660895,0.4383,3428.1,3428.0,3.0]
[1754186661293,0.4383,3428.9,3428.1,0.55]
[1754186661481,0.9294,3428.9,3428.7,0.1456]
[1754186661678,0.5839,3429.2,3428.7,0.1456]
[1754186661889,0.9294,3429.1,3428.7,0.1456]
[1754186662088,0.9294,3429.0,3428.7,0.1456]
[1754186662288,4.475,3430.2,3428.7,0.1456]
[1754186662289,0.14611926,3430.3,3429.1,3.0]
[1754186662514,0.14611926,3430.3,3430.2,0.6956]
[1754186662716,1.07551926,3430.3,3429.2,0.970104]
[1754186662936,0.9294,3430.2,3429.5,0.55]
[1754186663430,0.9294,3430.1,3429.2,3.0]
[1754186663628,0.03644314,3430.0,3429.3,0.22432675]
[1754186663924,0.9294,3430.0,3429.0,0.55]
[1754186664103,0.14611926,3430.3,3429.0,0.55]
[1754186664104,0.9294,3429.9,3429.1,0.24113752]
[1754186664307,0.9294,3429.8,3429.0,0.55]
[1754186664645,0.9294,3429.7,3429.0,0.55]
[1754186665677,0.9294,3429.7,3429.0,0.76919853]
[1754186666223,0.9294,3429.6,3429.1,0.876334]
[1754186666389,0.18255922,3430.3,3429.1,0.876334]
[1754186666390,0.9294,3429.5,3429.1,0.876334]
[1754186666589,0.96584952,3429.4,3429.1,0.876334]
[1754186666825,0.9294,3429.3,3429.1,0.876334]
[1754186667030,0.9294,3429.2,3429.1,0.876334]
[1754186667727,0.9294,3429.2,3428.2,0.55]
[1754186667888,0.03645271,3429.1,3429.0,0.876334]
[1754186668092,0.9294,3429.1,3429.0,0.876334]
[1754186668926,0.9294,3429.1,3428.2,0.24943936]
[1754186669102,0.03644102,3430.2,3428.2,0.24943936]
[1754186669307,0.9294,3429.0,3428.2,0.876615]
[1754186669509,0.03644314,3430.0,3428.2,0.876615]
[1754186669711,0.9294,3428.9,3428.2,0.876615]
[1754186669909,0.03644314,3430.0,3428.2,0.876615]
[1754186670106,0.70108553,3430.1,3428.2,0.876615]
[1754186670107,0.9294,3429.9,3428.8,3.0]
[1754186670313,0.96584527,3429.8,3428.8,3.0]
[1754186670513,0.03644527,3429.8,3428.8,3.0]
[1754186670718,0.9294,3429.7,3428.8,3.0]
[1754186670924,0.96584739,3429.6,3428.8,3.0]
[1754186671123,0.76754998,3430.0,3428.8,3.0]
[1754186671305,0.9294,3429.5,3428.8,3.0]
[1754186671505,0.9294,3429.4,3428.8,3.0]
[1754186671705,0.9294,3429.3,3428.8,3.0]
[1754186671907,0.53419942,3429.8,3428.9,0.876449]
[1754186672234,0.9294,3429.2,3428.9,0.876449]
[1754186672435,0.4911,3429.2,3428.9,0.876449]
[1754186672738,0.4383,3429.1,3428.9,0.1456]
[1754186672940,0.4383,3429.0,3428.9,0.1456]
[1754186673180,0.1456,3429.4,3428.9,0.1456]
[1754186673181,0.1456,3429.4,3429.0,0.4573]
[1754186673345,0.53419942,3429.8,3429.0,0.55]
[1754186673346,0.1456,3429.6,3429.0,0.55]
[1754186673641,0.1456,3429.6,3429.1,0.6029]
[1754186673941,0.5839,3429.6,3429.2,0.4573]
[1754186674320,0.5839,3429.6,3429.2,3.4573]
[1754186675038,0.1456,3429.6,3429.3,0.4573]
[1754186675238,0.1456,3429.6,3429.1,0.1456]
[1754186675239,0.1456,3429.6,3429.4,0.4573]
[1754186675853,0.4383,3429.9,3429.4,0.4573]
[1754186676024,0.1456,3429.9,3429.4,0.6029]
[1754186676225,0.4383,3429.8,3429.4,0.6029]
[1754186676456,0.4383,3429.8,3429.4,0.5823]
[1754186676947,0.4383,3429.8,3429.5,0.6029]
[1754186677354,0.14611926,3430.3,3429.7,0.1456]
[1754186677355,0.29171926,3430.3,3429.7,0.1456]
[1754186677561,0.29171926,3430.3,3429.6,0.597]
[1754186677562,0.001,3429.8,3429.6,0.55]
[1754186677856,0.001,3429.8,3429.6,3.55]
[1754186678052,0.001,3429.8,3429.7,0.6956]
[1754186678439,0.001,3429.8,3429.7,1.1529]
[1754186678956,0.4393,3429.8,3429.7,0.1456]
[1754186679119,0.9304,3429.8,3429.6,0.1456]
[1754186679319,0.4393,3429.8,3429.6,0.1456]
[1754186679820,0.4383,3429.7,3429.5,0.6029]
[1754186680013,0.4911,3429.6,3429.5,0.6029]
[1754186680439,0.9294,3429.6,3429.5,0.6029]
[1754186680676,0.1456,3429.7,3429.5,0.6029]
[1754186680943,0.9294,3429.6,3429.5,0.6029]
[1754186681541,0.1456,3429.7,3429.6,0.55]
[1754186681742,0.1456,3429.7,3429.6,1.0073]
[1754186682051,0.001,3429.8,3429.6,1.1529]
[1754186683053,0.001,3429.8,3429.6,0.6956]
[1754186683254,0.001,3429.8,3429.7,1.0073]
[1754186683551,0.001,3429.8,3429.7,1.644519]
[1754186685023,0.001,3429.8,3429.7,1.187219]
[1754186685216,0.4393,3429.8,3429.7,0.637219]
[1754186685745,0.001,3429.8,3429.7,1.094519]
[1754186686560,0.001,3429.8,3429.7,0.637219]
[1754186687662,0.001,3429.8,3429.7,1.187219]
[1754186687824,0.29171926,3430.3,3429.8,0.55]
[1754186688179,0.14611926,3430.3,3430.0,3.55]
[1754186688535,0.14611926,3430.3,3430.2,0.6956]
[1754186689055,0.14611926,3430.3,3430.2,1.1529]
[1754186689258,11.549,3432.2,3430.2,1.1529]
[1754186689259,0.4383,3431.8,3430.4,0.55]
[1754186689437,0.4744,3431.7,3430.6,3.55]
[1754186689755,0.455,3431.6,3431.3,0.1456]
[1754186689958,0.9294,3431.6,3431.3,0.1456]
[1754186690259,0.18202721,3431.5,3431.0,0.1456]
[1754186690420,0.9294,3431.4,3431.0,0.1456]
[1754186690620,0.1456,3431.1,3430.6,0.36454756]
[1754186690822,0.9294,3431.0,3430.6,0.1456]
[1754186691021,0.1456,3431.1,3430.6,0.1456]
[1754186691430,0.9294,3431.0,3430.6,0.22368712]
[1754186691630,0.9294,3430.9,3430.7,0.1456]
[1754186691839,0.9294,3430.8,3430.2,0.55]
[1754186692052,0.455,3430.7,3430.6,0.1456]
[1754186692245,1.075,3430.7,3430.3,0.1456]
[1754186692442,0.9294,3430.6,3430.3,0.1456]
[1754186692749,0.9294,3430.6,3430.1,0.85226379]
[1754186692948,0.9294,3430.5,3430.1,0.85226379]
[1754186693168,0.9294,3430.4,3430.1,0.85226379]
[1754186693489,0.455,3430.3,3430.1,0.85226379]
[1754186693651,0.1456,3430.7,3430.2,1.0582]
[1754186693853,0.455,3430.6,3430.2,0.55]
[1754186694054,0.9294,3430.5,3430.3,0.1456]
[1754186694253,0.9294,3430.5,3430.1,0.70666379]
[1754186694254,1.075,3430.4,3430.1,0.70666379]
[1754186694579,0.96583996,3430.3,3430.1,0.70666379]
[1754186694781,0.1456,3430.2,3430.1,0.70666379]
[1754186694979,1.075,3430.2,3430.1,0.70666379]
[1754186697269,1.076,3430.2,3430.1,0.70666379]
[1754186700369,0.1466,3430.2,3430.1,0.70666379]
[1754186701847,1.076,3430.2,3430.1,0.70666379]
[1754186704979,0.1466,3430.2,3430.1,0.70666379]
[1754186705169,0.1466,3430.2,3430.1,1.21486379]
[1754186705486,0.1466,3430.2,3430.1,0.70666379]
[1754186706147,0.6016,3430.2,3430.1,0.70666379]
[1754186708469,1.076,3430.2,3430.1,0.70666379]
[1754186708661,0.6016,3430.2,3430.1,0.70666379]
[1754186709265,0.1466,3430.2,3430.1,0.70666379]
[1754186709773,0.1466,3430.2,3430.1,1.21486379]
[1754186709970,0.1466,3430.2,3430.1,0.70666379]
[1754186710176,1.076,3430.2,3430.1,0.70666379]
[1754186710548,1.076,3430.2,3430.1,0.21556379]
[1754186710754,1.076,3430.2,3429.6,0.708664]
[1754186710975,0.1456,3429.7,3429.6,0.002]
[1754186711980,0.1456,3429.7,3429.6,0.5102]
[1754186712888,0.1456,3430.0,3429.6,0.7326513]
[1754186713190,0.1456,3430.0,3429.7,0.5082]
[1754186713594,0.1466,3430.2,3429.7,0.9163]
[1754186713752,0.1466,3430.2,3429.8,0.5082]
[1754186714154,0.001,3430.2,3430.0,0.55]
[1754186714501,0.001,3430.2,3430.1,1.4663]
[1754186715269,0.001,3430.2,3430.1,1.91293]
[1754186715680,0.001,3430.2,3430.1,1.65043]
[1754186715882,0.001,3430.2,3430.1,1.91293]
[1754186716973,0.001,3430.2,3430.1,1.65043]
[1754186717171,0.001,3430.2,3430.1,1.91293]
[1754186717383,0.455,3432.6,3430.2,2.308]
[1754186717582,0.4744,3432.4,3431.0,3.55]
[1754186717782,0.03641872,3432.3,3431.0,3.55]
[1754186718107,7.013,3433.6,3431.1,0.5082]
[1754186718108,0.9294,3432.2,3431.1,0.5082]
[1754186719613,0.4744,3432.2,3431.1,0.5082]
[1754186719798,0.475,3432.1,3431.1,0.5082]
[1754186719973,0.4958,3432.0,3430.7,0.4959]
[1754186720307,0.475,3431.9,3430.7,0.4959]
[1754186720495,0.475,3432.3,3431.0,3.0]
[1754186720715,4.552,3433.1,3431.1,0.55]
[1754186720893,0.475,3432.2,3431.1,1.0459]
[1754186721102,0.4958,3432.1,3431.3,0.55]
[1754186721404,0.475,3432.0,3431.3,0.55]
[1754186721623,0.9708,3432.7,3431.5,10.76800969]
[1754186721914,1.00721554,3432.6,3431.7,0.55]
[1754186722211,0.9708,3432.6,3431.9,0.55]
[1754186722373,0.9708,3432.6,3431.9,1.0459]
[1754186723076,0.9708,3432.6,3431.9,1.26829879]
[1754186723273,0.03640706,3433.4,3431.4,4.34776408]
[1754186723274,0.9708,3432.5,3431.6,0.55]
[1754186723687,0.9708,3432.4,3431.6,0.55]
[1754186723893,0.4958,3432.4,3431.6,0.55]
[1754186724098,0.9708,3432.3,3431.6,0.55]
[1754186724510,0.03640706,3433.4,3431.4,0.21694549]
[1754186724719,0.9708,3432.2,3431.7,0.55]
[1754186724920,0.03642085,3432.1,3431.7,0.55]
[1754186725287,0.9708,3432.0,3431.7,0.55]
[1754186725607,0.03640918,3433.2,3431.7,0.55]
[1754186725793,0.9708,3433.1,3431.7,1.0459]
[1754186726218,0.9708,3433.0,3431.7,1.0459]
[1754186726387,0.64989707,3433.2,3431.7,1.0459]
[1754186726719,0.9708,3432.9,3431.7,1.0459]
[1754186726872,0.64989707,3433.2,3431.7,1.0459]
[1754186727076,0.9708,3433.1,3431.7,1.0459]
[1754186727524,0.1456,3432.3,3431.8,0.1456]
[1754186727880,0.475,3432.2,3431.8,0.1456]
[1754186728405,0.475,3432.1,3431.8,0.1456]
[1754186728603,0.9708,3432.1,3431.7,0.55]
[1754186728814,1.15282191,3432.0,3431.7,0.55]
[1754186728990,1.15282191,3432.0,3431.4,0.22110456]
[1754186728991,0.1456,3431.8,3431.4,0.22110456]
[1754186729194,0.61637731,3433.1,3430.9,0.1456]
[1754186729195,0.1456,3431.5,3430.9,0.1456]
[1754186729390,0.9708,3431.4,3430.9,0.1456]
[1754186729620,0.9708,3431.3,3430.9,0.1456]
[1754186729942,0.1456,3431.5,3430.9,0.86236378]
[1754186730142,0.6414,3431.5,3430.9,0.36646378]
[1754186730320,0.9708,3431.4,3430.6,0.4959]
[1754186730516,0.1456,3431.2,3430.6,0.1456]
[1754186730732,0.1456,3431.0,3430.5,0.1456]
[1754186730919,0.475,3430.9,3430.5,0.1456]
[1754186731316,0.1456,3431.0,3430.5,0.1456]
[1754186731501,1.00723358,3430.9,3430.1,0.4979]
[1754186731728,0.9708,3430.9,3430.6,0.4959]
[1754186731919,0.1456,3431.0,3430.6,0.4959]
[1754186732123,0.9708,3430.8,3430.6,0.4959]
[1754186732439,0.1456,3430.7,3430.6,0.4959]
[1754186733102,0.6206,3430.7,3430.6,0.4959]
[1754186734504,0.4958,3431.0,3430.6,0.4959]
[1754186734700,0.1456,3430.8,3430.6,0.4959]
[1754186735711,0.1456,3430.8,3430.7,0.4959]
[1754186736105,0.1456,3430.8,3430.7,4.0459]
[1754186736322,0.475,3431.5,3430.7,4.0459]
[1754186736527,0.1456,3431.3,3430.7,4.1915]
[1754186737556,0.1456,3431.3,3430.7,3.6956]
[1754186737724,0.9708,3431.2,3430.7,3.6956]
[1754186737925,0.475,3431.1,3430.7,3.6956]
[1754186738226,0.1456,3431.3,3430.7,3.1456]
[1754186738458,0.6206,3431.0,3430.7,3.0]
[1754186739032,0.1456,3431.0,3430.7,3.0]
[1754186739566,0.6206,3431.0,3430.7,3.0]
[1754186739765,0.9708,3431.9,3430.8,0.4959]
[1754186739930,0.1456,3431.5,3430.9,0.1456]
[1754186740261,0.1456,3431.5,3431.0,0.4959]
[1754186740462,0.1456,3431.5,3430.9,0.1456]
[1754186740793,0.1456,3431.5,3431.1,0.4959]
[1754186741060,0.001,3431.3,3431.2,0.4959]
[1754186742280,0.001,3431.3,3430.9,0.6415]
[1754186742432,0.001,3431.3,3431.0,0.4959]
[1754186742626,0.001,3431.3,3430.9,0.1456]
[1754186742861,0.476,3431.3,3430.9,0.1456]
[1754186743384,0.001,3431.3,3431.0,0.4959]
[1754186745580,0.001,3431.3,3431.1,0.4959]
[1754186746453,0.001,3431.3,3430.9,0.1456]
[1754186746780,0.9708,3431.2,3430.5,0.21544362]
[1754186746979,0.1456,3431.0,3430.6,0.1456]
[1754186747276,0.1456,3431.0,3430.6,0.6415]
[1754186747488,0.1456,3431.0,3430.6,0.1456]
[1754186747652,0.1456,3431.2,3430.7,0.4959]
[1754186747843,0.1456,3431.2,3430.8,0.4959]
[1754186748043,0.1456,3431.2,3430.9,0.4959]
[1754186748543,0.1456,3431.2,3430.6,0.1456]
[1754186748738,0.1456,3431.2,3431.0,0.4959]
[1754186749884,0.1456,3431.2,3430.8,0.4684]
[1754186750092,0.1456,3431.2,3430.9,0.4684]
[1754186752251,0.1456,3431.2,3430.6,0.1456]
[1754186752449,0.1456,3431.2,3430.7,0.4684]
[1754186752851,0.1456,3431.2,3430.8,0.4684]
[1754186753065,0.001,3431.3,3430.6,0.55]
[1754186753272,0.1466,3431.3,3430.9,0.4684]
[1754186753480,0.1466,3431.3,3431.0,0.4684]
[1754186753648,0.001,3431.3,3431.0,0.1456]
[1754186753990,0.001,3431.3,3431.1,0.4684]
[1754186754888,0.001,3431.3,3431.0,0.1456]
[1754186755086,0.001,3431.3,3431.0,0.614]
[1754186756393,0.001,3431.3,3431.1,0.4684]
[1754186758957,0.001,3431.3,3431.2,1.0184]
[1754186759153,0.001,3431.3,3431.2,0.1456]
[1754186759375,0.461,3431.3,3431.0,0.1456]
[1754186759771,0.001,3431.3,3431.0,0.1456]
[1754186759991,0.46,3431.2,3431.0,0.1456]
[1754186760289,0.001,3431.3,3431.0,0.1456]
[1754186760798,0.9203,3431.2,3430.9,3.0]
[1754186760959,0.46,3431.1,3430.9,3.0]
[1754186761988,0.46,3431.1,3430.8,0.1456]
[1754186762182,0.46,3431.1,3430.9,3.0]
[1754186763164,0.6069,3431.3,3430.9,3.0]
[1754186763383,0.6069,3431.3,3430.9,3.4684]
[1754186763561,1.0669,3431.3,3430.9,3.4684]
[1754186763987,0.46,3431.2,3430.9,3.4684]
[1754186766802,0.1466,3431.3,3430.9,3.4684]
[1754186766967,0.1466,3431.3,3430.9,3.0]
[1754186767313,0.1466,3431.3,3431.2,9.80506662]
[1754186767477,0.001,3431.3,3431.2,9.80506662]
[1754186767685,0.001,3431.3,3431.2,10.27346662]
[1754186769470,0.001,3431.3,3431.2,10.82346662]
[1754186769713,0.001,3431.3,3431.2,11.23156662]
[1754186769868,0.001,3431.3,3431.2,11.55241051]
[1754186770604,0.001,3431.3,3431.2,11.28991051]
[1754186772593,0.001,3431.3,3431.2,10.82151051]
[1754186773067,0.001,3431.3,3431.2,9.95066662]
[1754186773267,0.9213,3431.3,3431.2,9.95066662]
[1754186773889,0.461,3431.3,3431.2,9.95066662]
[1754186774675,0.9213,3431.3,3431.2,3.0]
[1754186774875,1.0669,3431.3,3431.2,3.0]
[1754186775176,1.0669,3431.3,3430.7,0.1456]
[1754186775392,0.9203,3431.2,3430.7,0.1456]
[1754186775570,0.9203,3431.2,3430.7,3.1456]
[1754186775795,0.9203,3431.1,3430.7,3.1456]
[1754186775996,0.9203,3431.0,3430.9,9.80506662]
[1754186778420,0.9203,3431.0,3430.9,3.0]
[1754186779113,1.0659,3431.0,3430.9,3.0]
[1754186780315,1.0659,3431.0,3430.5,0.21774256]
[1754186780616,0.1456,3430.6,3430.3,3.0]
[1754186780826,0.9385,3430.5,3430.3,1.8904]
[1754186780988,1.0841,3430.4,3430.3,1.8904]
[1754186782244,0.1456,3430.4,3430.3,1.8904]
[1754186782747,1.0841,3430.4,3430.3,1.8904]
[1754186782909,1.0841,3430.4,3430.3,0.21588814]
[1754186783235,1.0841,3430.4,3430.1,0.002]
[1754186783436,0.1456,3430.2,3430.1,0.21959633]
[1754186783637,0.1456,3430.2,3430.1,3.21959633]
[1754186783820,0.1456,3430.2,3430.1,3.002]
[1754186784338,1.0841,3430.2,3430.1,3.002]
[1754186787133,0.5915,3430.2,3430.1,3.002]
[1754186787330,0.5915,3430.2,3430.1,3.21674564]
[1754186787733,1.0841,3430.2,3430.1,3.21674564]
[1754186787897,1.0841,3430.2,3430.1,0.21674564]
[1754186789055,1.0841,3430.2,3430.1,0.002]
[1754186790242,1.12054102,3430.2,3430.1,0.002]
[1754186790848,1.0841,3430.2,3430.1,0.002]
[1754186794645,0.5915,3430.2,3430.1,0.002]
[1754186794849,4.532,3430.2,3430.1,0.002]
[1754186795054,4.6776,3430.2,3430.1,0.002]
[1754186795544,0.1456,3430.2,3430.1,0.002]
[1754186795953,1.0841,3430.2,3430.1,0.002]
[1754186796146,1.64581,3430.2,3430.1,0.002]
[1754186797936,1.64581,3430.2,3428.9,3.1456]
[1754186798141,0.1456,3429.3,3428.8,0.1456]
[1754186798355,0.1456,3429.1,3428.7,0.35086612]
[1754186798647,0.1456,3429.1,3428.7,0.1456]
[1754186799353,0.1456,3429.1,3428.7,0.3498324]
[1754186799526,4.53,3429.8,3429.0,3.0]
[1754186799846,4.53,3430.1,3429.2,0.1456]
[1754186800035,0.1456,3429.7,3429.3,0.3925]
[1754186800240,0.1456,3429.7,3429.2,0.1456]
[1754186800417,0.1456,3429.7,3429.3,0.76206]
[1754186800899,4.53,3430.1,3428.7,0.75688124]
[1754186801075,0.9385,3430.0,3429.3,0.21525407]
[1754186801370,0.70434293,3431.1,3428.8,0.3925]
[1754186801371,4.534,3430.5,3429.1,10.21579969]
[1754186801536,0.1456,3429.8,3429.4,0.3925]
[1754186801734,0.1456,3429.8,3429.5,0.3925]
[1754186801938,7.006,3431.2,3429.9,0.55]
[1754186801939,0.9385,3430.8,3429.9,0.55]
[1754186802274,0.9385,3431.1,3430.0,1.36916055]
[1754186802474,0.1456,3430.6,3430.0,1.36916055]
[1754186802616,0.1456,3430.6,3430.1,0.5381]
[1754186802819,0.1456,3430.6,3430.2,0.59897606]
[1754186803251,0.1456,3430.6,3430.2,0.20647606]
[1754186803431,0.1456,3430.8,3430.3,0.5381]
[1754186803632,0.1456,3430.8,3430.3,0.1456]
[1754186803838,0.1456,3430.8,3430.4,0.3925]
[1754186804050,0.1456,3430.8,3430.5,0.3925]
[1754186804360,0.1456,3430.8,3430.6,0.3925]
[1754186804675,0.1456,3430.8,3430.6,1.268567]
[1754186805040,0.1456,3430.8,3430.6,0.3925]
[1754186805239,0.1456,3430.8,3430.7,0.876067]
[1754186808191,0.001,3431.3,3430.7,1.268567]
[1754186809400,0.001,3431.3,3430.7,0.876067]
[1754186810299,0.4516,3431.2,3430.7,0.876067]
[1754186810468,0.46693146,3431.1,3430.7,0.876067]
[1754186810654,0.4516,3431.0,3430.0,0.21935102]
[1754186810853,0.4516,3431.0,3430.1,0.466931]
[1754186811199,0.4305,3430.9,3430.1,0.466931]
[1754186811367,0.4516,3430.8,3430.1,0.466931]
[1754186811565,0.46693571,3430.7,3430.1,0.466931]
[1754186811780,0.4516,3430.6,3430.1,0.466931]
[1754186811983,0.46693783,3430.5,3430.1,0.466931]
[1754186812197,0.8821,3430.4,3430.1,0.466931]
[1754186812365,0.03742934,3431.3,3430.1,0.466931]
[1754186812569,0.8821,3430.3,3430.1,0.466931]
[1754186812782,0.4305,3430.2,3430.1,0.466931]
[1754186813354,0.8821,3430.4,3430.1,0.466931]
[1754186813554,0.8821,3430.3,3430.1,0.466931]
[1754186815698,0.4305,3431.1,3430.1,0.466931]
[1754186815988,0.8821,3430.9,3430.1,0.466931]
[1754186816182,0.001,3431.3,3430.1,0.466931]
[1754186816183,0.8821,3430.8,3430.1,0.466931]
[1754186816354,0.8821,3430.7,3430.1,0.466931]
[1754186816550,0.001,3431.3,3430.1,0.466931]
[1754186816792,0.8821,3431.2,3430.1,0.466931]
[1754186817093,0.8821,3431.1,3430.1,0.466931]
[1754186817389,0.8821,3431.0,3430.1,0.466931]
[1754186817560,0.8821,3430.9,3430.1,0.466931]
[1754186817755,0.8821,3430.8,3430.1,0.466931]
[1754186817955,0.1456,3430.3,3430.1,0.466931]
[1754186818256,1.0277,3430.3,3430.1,0.466931]
[1754186818587,0.4305,3430.2,3430.1,0.466931]
[1754186818787,0.4305,3430.2,3430.1,10.27530138]
[1754186819382,0.1456,3430.3,3430.1,10.27530138]
[1754186820495,0.1456,3430.3,3430.1,9.80837038]
[1754186820697,0.5972,3430.3,3430.1,9.80837038]
[1754186820994,0.8821,3430.2,3430.1,9.80837038]
[1754186821308,0.8821,3430.2,3430.1,3.0]
[1754186825174,0.8821,3430.2,3430.0,0.21630656]
[1754186825373,0.18204208,3430.1,3429.4,0.8764]
[1754186825565,0.1456,3429.5,3429.3,3.002]
[1754186825787,0.8821,3429.4,3429.3,3.002]
[1754186826101,0.8821,3429.4,3429.3,3.87841]
[1754186826887,0.8821,3429.4,3429.3,0.87841]
[1754186827095,0.0374304,3431.2,3429.3,0.87841]
[1754186827096,0.001,3431.2,3429.6,0.55]
[1754186827297,0.001,3431.2,3430.9,3.0]
[1754186827500,0.001,3431.2,3431.0,1.31591055]
[1754186827688,0.001,3431.2,3430.9,3.0]
[1754186827888,0.001,3431.2,3431.1,0.4516]
[1754186828416,0.001,3431.2,3431.1,0.8441]
[1754186834117,0.001,3431.2,3431.1,0.4516]
[1754186835516,0.8831,3431.2,3431.1,0.4516]
[1754186835716,0.8831,3431.2,3431.0,0.19527937]
[1754186835892,0.91853146,3431.1,3429.9,5.429192]
[1754186836088,0.8821,3431.0,3430.0,3.0]
[1754186836322,0.8821,3430.9,3430.0,0.21983411]
[1754186836724,0.4516,3430.8,3429.9,0.876192]
[1754186836929,0.4305,3430.7,3429.7,3.3925]
[1754186837099,0.1456,3430.3,3429.8,0.1456]
[1754186837420,0.1456,3430.3,3429.7,0.5972]
[1754186837721,0.4516,3430.2,3429.8,0.51482]
[1754186838287,0.4516,3430.1,3429.7,0.5972]
[1754186838497,0.4516,3430.1,3429.7,0.4516]
[1754186838702,0.5972,3430.1,3429.7,0.4516]
[1754186842050,0.4642,3430.0,3429.7,0.4516]
[1754186842542,0.4642,3430.0,3429.7,0.66563161]